Cogmind - Beta 12 @@@ ROGUE MODE // 2024.02.03 @ 23:00:25 Player: SURFACESEEKER Result: Destroyed by as-33753 with Assembled Blade Performance ------------- Evolutions (0) 0 Regions Visited (4) 800 Robots Destroyed (12) 60 Value Destroyed (246) 246 Prototype IDs (24) 480 Alien Tech Used (0) 0 Bonus (300) 300 TOTAL SCORE: 1886 Bonus ------- Aligned with FarCom 300 Cogmind --------- Core Integrity 0/250 Matter 287/300 Energy 100/100 System Corruption 13% Temperature Cool (0) Movement Core (100) Ox1 Location -9/Mines Parts ------- > --- POWER (1) -------- (None) > --- PROPULSION (2) --- (None) > --- UTILITY (2) ------ Small Storage Unit Experimental Sensor Array > --- WEAPON (2) ------- (None) > --- INVENTORY (8) ---- Ion Engine Reinforced Ion Engine Seismic Detector Latent Energy Streamer Peak State ------------ > --- POWER ------------ Light Ion Engine > --- PROPULSION ------- Light Treads Light Treads > --- UTILITY ---------- Small Storage Unit Experimental Sensor Array > --- WEAPON ----------- Hammer > --- INVENTORY -------- Ion Engine Reinforced Ion Engine Seismic Detector Latent Energy Streamer [Rating: 15] Favorites ----------- Power Ion Engine Engine Ion Engine Propulsion Light Treads Treads Light Treads Leg Aluminum Leg Utility Improved Terrain Scanner Device Improved Terrain Scanner Storage Small Storage Unit Weapon Assault Rifle Energy Gun Medium Laser Energy Cannon Latent Energy Streamer Ballistic Gun Assault Rifle Impact Weapon Hammer Build | -11 -10 -10 -10 -9 ------- Run | Jun Mat Min Exi Min Slots Evolved . | . . . . . Power . | . . . . . Propulsion . | . . . . . Utility . | . . . . . Weapon . | . . . . . Parts Attached 23 | 9 2 . 2 10 Power 6 | 3 . . 1 2 Engine 6 | 3 . . 1 2 Core . | . . . . . Reactor . | . . . . . Propulsion 4 | 2 . . . 2 Treads 3 | 2 . . . 1 Leg 1 | . . . . 1 Wheel . | . . . . . Hover . | . . . . . Flight . | . . . . . Utility 6 | 2 . . 1 3 Device 4 | 2 . . . 2 Storage 2 | . . . 1 1 Processor . | . . . . . Hackware . | . . . . . Protection . | . . . . . Artifact . | . . . . . Weapon 7 | 2 2 . . 3 Energy Gun 1 | 1 . . . . Energy Cannon 1 | . . . . 1 Ballistic Gun 4 | 1 2 . . 1 Ballistic Cannon . | . . . . . Launcher . | . . . . . Special Weapon . | . . . . . Impact Weapon 1 | . . . . 1 Slashing Weapon . | . . . . . Piercing Weapon . | . . . . . Special Melee Weapon . | . . . . . Unidentified Prototypes 1 | . . . . 1 Parts Lost 8 | . . . . 8 Power 2 | . . . . 2 Propulsion 2 | . . . . 2 Utility 1 | . . . . 1 Weapon 3 | . . . . 3 Highest Loss Streak 7 | . . . . 7 To Critical Strikes 1 | . . . . 1 Average Slot Usage (%) 96 | . 100 100 100 68 Engine 13 | . 14 14 14 11 Treads 27 | . 28 28 28 21 Device 25 | . 28 28 27 8 Storage 1 | . . . . 14 Energy Gun 12 | . 14 14 14 1 Ballistic Gun 12 | . 14 14 14 2 Naked Turns . | . . . . . Heaviest Build 15 | 11 11 11 15 11 Greatest Support 40 | 40 40 40 40 40 Greatest Overweight (x) 3 | . . . . 3 Average Overweight (x) . | . . . . . Largest Inventory Capacity 8 | 5 5 5 8 8 Average Capacity 5 | 5 5 5 5 7 Most Carried 6 | 5 5 5 6 6 Average Carried 4 | 1 4 5 5 3 Final Capacity 8 | 5 5 5 8 8 Final Carried 6 | 4 5 5 6 4 Class Distribution -------------------- 96% | Mutant Dominant Class ---------------- Mutant | -10/Materials Mutant | -10/Mines Mutant | -10/Exiles Mutant | -9/Mines Resources | -11 -10 -10 -10 -9 ----------- Run | Jun Mat Min Exi Min Matter Collected 456 | 200 95 47 . 114 Remotely . | . . . . . Salvage Created 420 | 11 137 33 . 239 Parts 25 | 5 7 7 . 6 Haulers Intercepted . | . . . . . Recyclers Shooed 1 | . . . . 1 Parts Field Recycled . | . . . . . Retrieved Matter . | . . . . . Parts Self-Destructed . | . . . . . Prevented . | . . . . . Kills | -11 -10 -10 -10 -9 ------- Run | Jun Mat Min Exi Min Combat Hostiles Destroyed 8 | . 3 3 . 2 Melee 1 | . . . . 1 Guns 7 | . 3 3 . 1 Classes Destroyed 5 | 1 2 1 . 1 Worker 1 | . 1 . . . Tunneler 1 | 1 . . . . Recycler 2 | . . . . 2 Swarmer 3 | . . 3 . . Grunt 5 | . 3 . . 2 Best Kill Streak 3 | 1 2 3 . 2 Combat Bots Only 3 | . 2 3 . 1 Max Kills in Single Turn 1 | 1 1 1 . 1 Gunslinging . | . . . . . Exploded . | . . . . . Melee 1 | . . . . 1 Uniques/NPCs Destroyed . | . . . . . Combat | -11 -10 -10 -10 -9 -------- Run | Jun Mat Min Exi Min Damage Taken 1149 | . 149 89 . 911 Core 255 | . 45 13 . 197 Absorbed by Shields . | . . . . . Core Remaining (%) 100 | 100 . . . . Volleys Fired 33 | 3 10 9 . 11 Largest 2 | 2 2 2 . 2 Hottest 70 | 70 70 70 . 70 Shots Fired 61 | 6 20 18 . 17 Gun 61 | 6 20 18 . 17 Cannon . | . . . . . Launcher . | . . . . . Special . | . . . . . Kinetic 33 | 3 10 9 . 11 Thermal 28 | 3 10 9 . 6 Explosive . | . . . . . Electromagnetic . | . . . . . Robot Hit Streak 8 | 1 8 5 . 6 Robot Miss Streak 5 | 2 5 3 . 1 Penetration Max . | . . . . . Secondary Targets 1 | . . 1 . . Max Gunslinging Chain 1 | . . 1 . . Shots Hit Robots 43 | 1 12 12 . 18 Core Hits 17 | 2 8 3 . 4 Critical Kills . | . . . . . Critical Parts Destroyed . | . . . . . Critical Strikes 3 | . 2 1 . . Burn 3 | . 2 1 . . Melee Attacks 6 | . . . . 6 Impact 6 | . . . . 6 Slashing . | . . . . . Piercing . | . . . . . Sneak Attacks 2 | . . . . 2 Combat Hostiles . | . . . . . Follow-up Attacks . | . . . . . Damage Inflicted 662 | 33 154 150 . 325 Guns 517 | 33 153 150 . 181 Cannons . | . . . . . Explosions . | . . . . . Melee 124 | . . . . 124 Ramming 21 | . 1 . . 20 Kinetic 282 | 21 78 75 . 108 Thermal 235 | 12 75 75 . 73 Explosive . | . . . . . Electromagnetic . | . . . . . Impact 124 | . . . . 124 Slashing . | . . . . . Piercing . | . . . . . Highest Corruption 13 | . . . . 13 Average Corruption 12 | . . . . 12 Corruption Purged . | . . . . . Corruption Blocked . | . . . . . Effects 10 | . . . . 10 Message Errors 3 | . . . . 3 Matter Fused 2 | . . . . 2 Heat Flow Errors 1 | . . . . 1 Parts Rejected 2 | . . . . 2 Data Loss (major) 1 | . . . . 1 Misdirections 1 | . . . . 1 Overload Shots . | . . . . . Overflow Damage 24 | . . . . 24 Projectiles . | . . . . . Explosions . | . . . . . Melee 24 | . . . . 24 Knockbacks 1 | . . . . 1 Impact 1 | . . . . 1 Kinetic . | . . . . . Secondary . | . . . . . Self-Inflicted Damage . | . . . . . Shots . | . . . . . Rammed 8 | . . . . 8 Targets Rammed 10 | . 1 . . 9 Kicked 1 | . . . . 1 Crushed 1 | . 1 . . . Highest Temperature 156 | 18 156 72 . 87 Average Temperature 42 | 9 64 34 . 30 Received Heat Transfer 327 | . 93 . . 234 Siege Activations . | . . . . . Robots Corrupted . | . . . . . Combat Hostiles . | . . . . . Parts Fried . | . . . . . Impact Corruptions 1 | . . . . 1 Robots Melted . | . . . . . Combat Hostiles . | . . . . . Parts Melted 1 | . 1 . . . Heat Transferred 925 | 37 370 296 . 222 Parts Sabotaged . | . . . . . Parts Stolen . | . . . . . Parts Stripped . | . . . . . Power Chain Reactions . | . . . . . Missiles Intercepted . | . . . . . Alert | -11 -10 -10 -10 -9 ------- Run | Jun Mat Min Exi Min Peak Influence 118 | 5 118 115 . 60 Initial 45 | . 3 45 . . Average 34 | 3 38 59 . 24 Maximum Alert Level . | . . . . . Low Security (%) 100 | 100 100 100 . 100 Level 1 . | . . . . . Level 2 . | . . . . . Level 3 . | . . . . . Level 4 . | . . . . . Level 5 . | . . . . . High Security . | . . . . . Max Security . | . . . . . Squads Dispatched . | . . . . . Investigation . | . . . . . Extermination . | . . . . . Reinforcement . | . . . . . Assault . | . . . . . Garrison . | . . . . . Intercept . | . . . . . Searches Triggered . | . . . . . Construction Impeded . | . . . . . Haulers Reinforced . | . . . . . Active Scanning Responses . | . . . . . Cargo Convoy Interrupts . | . . . . . Stealth | -11 -10 -10 -10 -9 --------- Run | Jun Mat Min Exi Min Distress Signals . | . . . . . Communications Jammed . | . . . . . Distress Signals . | . . . . . Times Spotted 34 | . 7 3 . 24 Peak Tracking Total 23 | . 4 3 . 23 Tactical Retreats 2 | . 1 . . 1 Traps | -11 -10 -10 -10 -9 ------- Run | Jun Mat Min Exi Min Traps Triggered . | . . . . . Indirectly . | . . . . . Trap Hack Attempts . | . . . . . Triggered . | . . . . . Disarmed . | . . . . . Reprogrammed . | . . . . . Reused . | . . . . . Traps Extracted . | . . . . . Installed . | . . . . . Triggered . | . . . . . Machines | -11 -10 -10 -10 -9 ---------- Run | Jun Mat Min Exi Min Machines Disabled . | . . . . . Max in Single Turn . | . . . . . Machines Repaired . | . . . . . Machines Sabotaged . | . . . . . Overloaded Fab Kills . | . . . . . Hacking | -11 -10 -10 -10 -9 --------- Run | Jun Mat Min Exi Min Machines Accessed 3 | . . . 3 . Terminals . | . . . . . Fabricators . | . . . . . Repair Stations . | . . . . . Recycling Units . | . . . . . Scanalyzers . | . . . . . Garrison Access . | . . . . . Total Hacks 6 | . . . 6 . Successful 6 | . . . 6 . Failed . | . . . . . Catastrophic . | . . . . . Database Lockouts . | . . . . . Manual 2 | . . . 2 . Terminals . | . . . . . Fabricators . | . . . . . Repair Stations . | . . . . . Recycling Units . | . . . . . Scanalyzers . | . . . . . Garrison Access . | . . . . . Terminal Hacks 6 | . . . 6 . Record 5 | . . . 5 . EX-Prototype ID Bank 1 | . . . 1 . Fabricator Hacks . | . . . . . Repair Station Hacks . | . . . . . Recycling Unit Hacks . | . . . . . Scanalyzer . | . . . . . Garrison Access Hacks . | . . . . . Unauthorized Hacks . | . . . . . Terminals . | . . . . . Fabricators . | . . . . . Repair Stations . | . . . . . Recycling Units . | . . . . . Scanalyzers . | . . . . . Garrison Access . | . . . . . Data Cores Recovered . | . . . . . Used . | . . . . . Hacking Detections . | . . . . . Full Trace Events . | . . . . . Feedback Events . | . . . . . Feedback Blocked . | . . . . . Robot Schematics Acquired . | . . . . . Robots Built . | . . . . . Authchips . | . . . . . Time . | . . . . . Total Robot Build Rating . | . . . . . Part Schematics Acquired . | . . . . . Parts Built . | . . . . . Authchips . | . . . . . Time . | . . . . . Total Part Build Rating . | . . . . . Parts Repaired . | . . . . . Time . | . . . . . Parts Recycled . | . . . . . Recycled Matter . | . . . . . Retrieved Matter . | . . . . . Retrieved Components . | . . . . . Parts Scanalyzed . | . . . . . Part Schematics Acquired . | . . . . . Parts Damaged . | . . . . . Bothacking | -11 -10 -10 -10 -9 ------------ Run | Jun Mat Min Exi Min Used RIF Installer . | . . . . . Robots Hacked . | . . . . . Non-combat . | . . . . . Combat . | . . . . . Robot Hacks Applied . | . . . . . Relay Couplers Released . | . . . . . Fabnet Peak Effective % . | . . . . . Robots Rewired . | . . . . . Allies Hacked . | . . . . . Hacks Repelled . | . . . . . Allies | -11 -10 -10 -10 -9 -------- Run | Jun Mat Min Exi Min Total Allies . | . . . . . Largest Group . | . . . . . Highest-Rated Group . | . . . . . Highest-Rated Ally . | . . . . . Total Orders . | . . . . . Ally Attacks . | . . . . . Total Damage . | . . . . . Kills . | . . . . . Allies Corrupted . | . . . . . Allies Melted . | . . . . . Intel | -11 -10 -10 -10 -9 ------- Run | Jun Mat Min Exi Min Robot Analysis Total . | . . . . . Derelict Logs Recovered . | . . . . . Drone Launches . | . . . . . Drone Recoveries . | . . . . . Exploration | -11 -10 -10 -10 -9 ------------- Run | Jun Mat Min Exi Min Turns Passed 2601 | 197 122 335 1697 250 Spaces Moved 1535 | 119 53 193 1055 115 Core 39 | 24 . . . 15 Treads 1483 | 95 53 193 1055 87 Legs 13 | . . . . 13 Wheels . | . . . . . Hover . | . . . . . Flight . | . . . . . Fastest Speed 50 | 50 160 160 160 100 Average Speed 157 | 137 160 160 160 149 Slowest Speed 200 | 160 160 160 160 200 Overloaded Moves . | . . . . . Propulsion Burnouts . | . . . . . Robots Hopped . | . . . . . Cave-ins Triggered . | . . . . . Exploration Rate (%) 33 | 4 7 39 91 27 Regions Visited 4 Branch Regions 3 Pre-discovered Areas 1 | . . . 1 . Known Exits Taken . | . . . . . Unknown Exits Taken 4 | 1 1 1 1 . Scrap Searched 2 | . . 1 . 1 Spaces Dug . | . . . . . Terrain Destroyed . | . . . . . Melee . | . . . . . Projectile . | . . . . . AOE . | . . . . . Terrain Rammed . | . . . . . Walls Destroyed . | . . . . . Machines Disabled . | . . . . . Actions | -11 -10 -10 -10 -9 --------- Run | Jun Mat Min Exi Min Total 1639 | 144 69 201 1065 160 Wait 10 | . 3 . 3 4 Move 1531 | 118 52 192 1054 115 Hop . | . . . . . Pick Up 16 | 9 1 . 3 3 Fast Attach 11 | 7 . . 1 3 Attach 6 | . . . . 6 Detach 1 | . . . . 1 Swap 6 | 2 2 . 1 1 Drop 9 | 5 . . 3 1 Fire 33 | 3 10 9 . 11 Melee 6 | . . . . 6 Ram . | . . . . . Kick 1 | . . . . 1 Crush 9 | . 1 . . 8 Escape Stasis . | . . . . . Rewire . | . . . . . Trap . | . . . . . Miscellaneous . | . . . . . Route ------- -11/Junkyard -10/Materials -10/Mines (discovered 2 exits: [*Mat] / *Exi) -10/Exiles -9/Mines History --------- Turn | Location | Event 13 | -11/Junkyard | Discovered new exit (range 16) 198 | -11/Junkyard | Entered Materials 198 | -10/Materials | Discovered new exit (range 7) 307 | -10/Materials | Build established: Mutant 320 | -10/Materials | Entered Mines 600 | -10/Mines | Discovered new exit (range 7) 645 | -10/Mines | Deemed a non-threat by the Exiles lab entrance 647 | -10/Mines | Discovered new exit (range 5) 655 | -10/Mines | Entered Exiles 699 | -10/Exiles | Met 8R-AWN 727 | -10/Exiles | Met EX-HEX 783 | -10/Exiles | Met EX-BIN 812 | -10/Exiles | Aligned with FarCom system 814 | -10/Exiles | Given EX-Vault access code 865 | -10/Exiles | Opened EX-Vault 932 | -10/Exiles | Warned to stay clear of 0b10 Research branches 991 | -10/Exiles | Met EX-DEC 1043 | -10/Exiles | Visited The Gauntlet 1815 | -10/Exiles | Learned location of Zion (-6) 1952 | -10/Exiles | Found Latent Energy Streamer 2338 | -10/Exiles | Discovered new exit (range 10) 2352 | -10/Exiles | Left Exiles lab with Latent Energy Streamer 2352 | -10/Exiles | Entered Mines 2393 | -9/Mines | Core integrity fell below 50% 2396 | -9/Mines | System corruption reached 10% 2453 | -9/Mines | Lost 7 parts (1p2n1u3w) 2526 | -9/Mines | Found a damaged Exp. Sensor Array with a note attached 2532 | -9/Mines | Found Prototype Device 2533 | -9/Mines | Identified Exp. Sensor Array 2577 | -9/Mines | Core integrity fell below 20% 2596 | -9/Mines | Assembled infested the area 2602 | -9/Mines | Destroyed by as-33753 with Assembled Blade Last Messages --------------- 02533_ T8 PIPI < P5QM|ZHPUVD|J